fUSD/lending_fUSD_20241110
["ID","MTS","AMOUNT","RATE_DAILY","PERIOD"]
[341909496,1731278890793,-245.716273,0.0001479,2]
[341909497,1731278890835,-245.716273,0.0001479,2]
[341909498,1731278890876,-434.845613,0.0001479,2]
[341909499,1731278890918,-434.845613,0.0001479,2]
[341909500,1731278890959,-434.845613,0.0001479,2]
[341909501,1731278891004,-434.845613,0.0001479,2]
[341909502,1731278891045,-3225.52,0.0001479,2]
[341909503,1731278891091,-2811.68,0.0001479,2]
[341909504,1731278891134,-338.57401683,0.0001479,2]
[341909505,1731278891174,-963.13,0.0001479,2]
[341909506,1731278891216,-958.02,0.0001479,2]
[341909507,1731278891257,-3693.83,0.0001479,2]
[341909508,1731278891297,-287.71748237,0.0001479,2]
[341909509,1731278891339,-915.49,0.0001479,2]
[341909510,1731278891379,-1525.77,0.0001479,2]
[341909511,1731278891422,-2156.1,0.0001479,2]
[341909512,1731278891464,-4193.4,0.0001479,2]
[341909513,1731278891504,-500.0,0.0001479,2]
[341909514,1731278891545,-500.0,0.0001479,2]
[341909515,1731278891588,-1629.54,0.0001479,2]
[341909516,1731278891632,-4813.23,0.0001479,2]
[341909517,1731278891675,-500.0,0.0001479,2]
[341909518,1731278891720,-2467.4,0.0001479,2]
[341909519,1731278891767,-3067.03,0.0001479,2]
[341909520,1731278891808,-706.1,0.0001479,2]
[341909521,1731278891848,-1061.01,0.0001479,2]
[341909522,1731278891890,-507.12,0.0001479,2]
[341909523,1731278891935,-1812.59,0.0001479,2]
[341909524,1731278891979,-1465.91,0.0001479,2]
[341909525,1731278892020,-500.0,0.0001479,2]
[341909526,1731278892058,-854.99,0.0001479,2]
[341909527,1731278892096,-777.21,0.0001479,2]
[341909528,1731278892138,-549.04,0.0001479,2]
[341909529,1731278892177,-500.0,0.0001479,2]
[341909530,1731278892216,-5965.76,0.0001479,2]
[341909531,1731278892256,-2564.31,0.0001479,2]
[341909532,1731278892296,-1218.42,0.0001479,2]
[341909533,1731278892337,-2585.68,0.0001479,2]
[341909534,1731278892379,-326.94,0.0001479,2]
[341909535,1731278892419,-500.0,0.0001479,2]
[341909536,1731278892460,-663.06,0.0001479,2]
[341909537,1731278892502,-451.31058336,0.0001479,2]
[341909538,1731278892546,-639.14,0.0001479,2]
[341909539,1731278892589,-151.0,0.0001479,2]
[341909540,1731278892633,-4382.39,0.0001479,2]
[341909541,1731278892676,-3061.89,0.0001479,2]
[341909542,1731278892719,-500.0,0.0001479,2]
[341909543,1731278892766,-652.93,0.0001479,2]
[341909544,1731278892809,-429.80378947,0.0001479,2]
[341909545,1731278892855,-500.0,0.0001479,2]
[341909546,1731278892899,-4010.54,0.0001479,2]
[341909547,1731278892942,-500.0,0.0001479,2]
[341909548,1731278892987,-799.69,0.0001479,2]
[341909549,1731278893029,-5215.02,0.0001479,2]
[341909550,1731278893072,-663.42,0.0001479,2]
[341909551,1731278893113,-8777.91,0.0001479,2]
[341909552,1731278893155,-2289.82,0.0001479,2]
[341909553,1731278893196,-500.0,0.0001479,2]
[341909554,1731278893238,-500.0,0.00014791,2]
[341909555,1731278893285,-500.0,0.00014791,2]
[341909556,1731278893334,-497.51583399,0.00014791,2]
[341909557,1731278893380,-1523.46,0.00014791,2]
[341909558,1731278893423,-1523.46,0.00014791,2]
[341909559,1731278893466,-1523.46,0.00014791,2]
[341909560,1731278893512,-1523.46,0.00014791,2]
[341909561,1731278893555,-151.0,0.00014791,2]
[341909562,1731278893604,-151.0,0.00014791,2]
[341909563,1731278893656,-629.8,0.00014791,2]
[341909564,1731278893702,-629.8,0.00014791,2]
[341909565,1731278893748,-629.8,0.00014791,2]
[341909566,1731278893802,-629.8,0.00014791,2]
[341909567,1731278893845,-500.0,0.00014791,2]
[341909568,1731278893891,-500.0,0.00014791,2]
[341909569,1731278893938,-500.0,0.00014791,2]
[341909570,1731278893984,-500.0,0.00014791,2]
[341909571,1731278894029,-500.0,0.00014791,2]
[341909572,1731278894072,-500.0,0.00014791,2]
[341909573,1731278894114,-500.0,0.00014791,2]
[341909574,1731278894159,-500.0,0.00014791,2]
[341909575,1731278894203,-151.0,0.00014791,2]
[341909576,1731278894250,-151.0,0.00014791,2]
[341909577,1731278894293,-157.535394,0.00014791,2]
[341909578,1731278894336,-175.823344,0.00014791,2]
[341909579,1731278894381,-1949.84,0.00014791,2]
[341909580,1731278894423,-1949.84,0.00014791,2]
[341909581,1731278894468,-1949.84,0.00014791,2]
[341909582,1731278894511,-1949.84,0.00014791,2]
[341909583,1731278894552,-1949.84,0.00014791,2]
[341909584,1731278894594,-1949.84,0.00014791,2]
[341909585,1731278894638,-1949.9172006,0.00014791,2]
[341909586,1731278894679,-702.12,0.00014791,2]
[341909587,1731278894720,-702.12,0.00014791,2]
[341909588,1731278894762,-702.12,0.00014791,2]
[341909589,1731278894804,-702.12,0.00014791,2]
[341909590,1731278894847,-702.12,0.00014791,2]
[341909591,1731278894890,-702.12,0.00014791,2]
[341909592,1731278894934,-702.3431738,0.00014791,2]
[341909593,1731278894982,-184.693461,0.00014791,2]
[341909594,1731278895029,-184.693461,0.00014791,2]
[341909595,1731278895071,-245.716273,0.00014791,2]
[341909596,1731278895114,-245.716273,0.00014791,2]
[341909597,1731278895155,-434.845613,0.00014791,2]
[341909598,1731278895195,-434.845613,0.00014791,2]
[341909599,1731278895237,-3225.52,0.00014791,2]
[341909600,1731278895278,-1763.155735,0.00014791,2]
[341909601,1731278895319,-963.13,0.00014791,2]
[341909602,1731278895361,-1763.155735,0.00014791,2]
[341909603,1731278895405,-3693.83,0.00014791,2]
[341909604,1731278895449,-915.49,0.00014791,2]
[341909605,1731278895490,-1525.77,0.00014791,2]
[341909606,1731278895534,-4193.4,0.00014791,2]
[341909607,1731278895582,-171.848175,0.00014791,2]
[341909608,1731278895631,-171.848175,0.00014791,2]
[341909609,1731278895682,-1629.54,0.00014791,2]
[341909610,1731278895731,-2467.4,0.00014791,2]
[341909611,1731278895783,-706.1,0.00014791,2]
[341909612,1731278895833,-1812.59,0.00014791,2]
[341909613,1731278895885,-854.99,0.00014791,2]
[341909614,1731278895933,-549.04,0.00014791,2]
[341909615,1731278895981,-5965.76,0.00014791,2]
[341909616,1731278896024,-2564.31,0.00014791,2]
[341909617,1731278896068,-2585.68,0.00014791,2]
[341909618,1731278896113,-500.0,0.00014791,2]
[341909619,1731278896158,-4382.39,0.00014791,2]
[341909620,1731278896203,-3061.89,0.00014791,2]
[341909621,1731278896246,-4010.54,0.00014791,2]
[341909622,1731278896291,-8777.91,0.00014791,2]
[341909623,1731278896338,-2289.82,0.00014791,2]
[341909624,1731278896384,-1523.46,0.00014792,2]
[341909625,1731278896435,-151.0,0.00014792,2]
[341909626,1731278896483,-629.8,0.00014792,2]
[341909627,1731278896782,-500.0,0.00014792,2]
[341909628,1731278896825,-618.15,0.00014792,2]
[341909629,1731278896869,-151.0,0.00014793,2]
[341909630,1731278896913,-151.0,0.00014793,2]
[341909631,1731278896954,-2971.09225383,0.00014794,2]
[341909632,1731278896998,-167.53514353,0.00014818,2]
[341909633,1731278897042,-1523.46,0.0001482,2]
[341909634,1731278897082,-629.8,0.0001482,2]
[341909635,1731278897122,-500.0,0.0001482,2]
[341909636,1731278897163,-150.0,0.0001484,2]
[341909637,1731278897205,-150.0,0.0001484,2]
[341909638,1731278897250,-1523.46,0.00014842,2]
[341909639,1731278897292,-629.8,0.00014842,2]
[341909640,1731278897333,-500.0,0.00014842,2]
[341909641,1731278897373,-1523.46,0.00014843,2]
[341909642,1731278897411,-1523.46,0.00014843,2]
[341909643,1731278897451,-1523.46,0.00014843,2]
[341909644,1731278897491,-1523.46,0.00014843,2]
[341909645,1731278897528,-1523.46,0.00014843,2]
[341909646,1731278897567,-1523.67943156,0.00014843,2]
[341909647,1731278897607,-253.501216,0.00014843,2]
[341909648,1731278897648,-629.8,0.00014843,2]
[341909649,1731278897688,-629.8,0.00014843,2]
[341909650,1731278897728,-629.8,0.00014843,2]
[341909651,1731278897769,-629.8,0.00014843,2]
[341909652,1731278897808,-629.8,0.00014843,2]
[341909653,1731278897845,-629.96450651,0.00014843,2]
[341909654,1731278897884,-500.0,0.00014843,2]
[341909655,1731278897921,-500.0,0.00014843,2]
[341909656,1731278897967,-500.0,0.00014843,2]
[341909657,1731278898022,-500.0,0.00014843,2]
[341909658,1731278898063,-500.0,0.00014843,2]
[341909659,1731278898105,-442.69989371,0.00014843,2]
[341909660,1731278898144,-245.716273,0.00014843,2]
[341909661,1731278898185,-245.716265,0.00014843,2]
[341909662,1731278898223,-3225.52,0.00014843,2]
[341909663,1731278898263,-963.13,0.00014843,2]
[341909664,1731278898304,-3693.83,0.00014843,2]
[341909665,1731278898344,-915.49,0.00014843,2]
[341909666,1731278898386,-1525.77,0.00014843,2]
[341909667,1731278898425,-4193.4,0.00014843,2]
[341909668,1731278898465,-1629.54,0.00014843,2]
[341909669,1731278898505,-2467.4,0.00014843,2]
[341909670,1731278898544,-706.1,0.00014843,2]
[341909671,1731278898586,-1812.59,0.00014843,2]
[341909672,1731278898627,-854.99,0.00014843,2]
[341909673,1731278898670,-549.04,0.00014843,2]
[341909674,1731278898711,-5965.76,0.00014843,2]
[341909675,1731278898751,-2564.31,0.00014843,2]
[341909676,1731278898792,-2585.68,0.00014843,2]
[341909677,1731278898834,-500.0,0.00014843,2]
[341909678,1731278898880,-151.0,0.00014843,2]
[341909679,1731278898924,-4382.39,0.00014843,2]
[341909680,1731278898969,-3061.89,0.00014843,2]
[341909681,1731278899015,-4010.54,0.00014843,2]
[341909682,1731278899057,-8777.91,0.00014843,2]
[341909683,1731278899103,-2289.82,0.00014843,2]
[341909684,1731278899146,-184.693461,0.00014844,2]
[341909685,1731278899188,-184.693459,0.00014844,2]
[341909686,1731278899236,-434.845613,0.00014844,2]
[341909687,1731278899277,-434.845613,0.00014844,2]
[341909688,1731278899324,-2811.68,0.00014848,2]
[341909689,1731278899369,-958.02,0.00014848,2]
[341909690,1731278899410,-2156.1,0.00014848,2]
[341909691,1731278899451,-407.29027913,0.00014848,2]
[341909692,1731278899492,-500.0,0.00014848,2]
[341909693,1731278899532,-4813.23,0.00014848,2]
[341909694,1731278899573,-500.0,0.00014848,2]
[341909695,1731278899614,-3067.03,0.00014848,2]
[341909696,1731278899654,-1061.01,0.00014848,2]
[341909697,1731278899695,-507.12,0.00014848,2]
[341909698,1731278899735,-1465.91,0.00014848,2]
[341909699,1731278899779,-500.0,0.00014848,2]
[341909700,1731278899819,-777.21,0.00014848,2]
[341909701,1731278899860,-500.0,0.00014848,2]
[341909702,1731278899900,-1218.42,0.00014848,2]
[341909703,1731278899942,-1218.42,0.00014848,2]
[341909704,1731278899983,-663.06,0.00014848,2]
[341909705,1731278900021,-639.14,0.00014848,2]
[341909706,1731278900061,-500.0,0.00014848,2]
[341909707,1731278900099,-500.0,0.00014848,2]
[341909708,1731278900138,-652.93,0.00014848,2]
[341909709,1731278900173,-500.0,0.00014848,2]
[341909710,1731278900211,-500.0,0.00014848,2]
[341909711,1731278900248,-500.0,0.00014848,2]
[341909712,1731278900284,-799.69,0.00014848,2]
[341909713,1731278900323,-5215.02,0.00014848,2]
[341909714,1731278900361,-663.42,0.00014848,2]
[341909715,1731278900400,-663.42,0.00014848,2]
[341909716,1731278900439,-500.0,0.00014848,2]
[341909717,1731278900483,-3225.52,0.00014849,2]
[341909718,1731278900522,-3225.52,0.00014849,2]
[341909719,1731278900561,-3225.52,0.00014849,2]
[341909720,1731278900659,-3225.52,0.00014849,2]
[341909721,1731278900699,-3225.52,0.00014849,2]
[341909722,1731278900740,-3225.52,0.00014849,2]
[341909723,1731278900779,-3225.55,0.00014849,2]
[341909724,1731278900819,-2811.68,0.00014849,2]
[341909725,1731278900860,-2811.68,0.00014849,2]
[341909726,1731278900900,-2811.68,0.00014849,2]
[341909727,1731278900942,-2811.68,0.00014849,2]
[341909728,1731278900984,-2811.68,0.00014849,2]
[341909729,1731278901023,-2811.68,0.00014849,2]
[341909730,1731278901063,-2811.91451963,0.00014849,2]
[341909731,1731278901102,-1763.155735,0.00014849,2]
[341909732,1731278901141,-963.13,0.00014849,2]
[341909733,1731278901181,-963.13,0.00014849,2]
[341909734,1731278901217,-963.13,0.00014849,2]
[341909735,1731278901258,-963.13,0.00014849,2]
[341909736,1731278901299,-963.13,0.00014849,2]
[341909737,1731278901340,-963.13,0.00014849,2]
[341909738,1731278901383,-963.25234743,0.00014849,2]
[341909739,1731278901425,-1763.155732,0.00014849,2]
[341909740,1731278901466,-958.02,0.00014849,2]
[341909741,1731278901505,-958.02,0.00014849,2]
[341909742,1731278901546,-958.02,0.00014849,2]
[341909743,1731278901594,-958.02,0.00014849,2]
[341909744,1731278901635,-958.02,0.00014849,2]
[341909745,1731278901675,-958.02,0.00014849,2]
[341909746,1731278901715,-958.08513594,0.00014849,2]
[341909747,1731278901756,-3693.83,0.00014849,2]
[341909748,1731278901796,-3693.83,0.00014849,2]
[341909749,1731278901837,-3693.83,0.00014849,2]
[341909750,1731278901878,-3693.83,0.00014849,2]
[341909751,1731278901915,-3693.83,0.00014849,2]
[341909752,1731278901956,-3693.83,0.00014849,2]
[341909753,1731278901999,-3693.96444317,0.00014849,2]
[341909754,1731278902040,-915.49,0.00014849,2]
[341909755,1731278902079,-915.49,0.00014849,2]
[341909756,1731278902118,-915.49,0.00014849,2]
[341909757,1731278902156,-915.49,0.00014849,2]
[341909758,1731278902193,-915.49,0.00014849,2]
[341909759,1731278902231,-915.49,0.00014849,2]
[341909760,1731278902274,-915.63644892,0.00014849,2]
[341909761,1731278902311,-1525.77,0.00014849,2]
[341909762,1731278902348,-1525.77,0.00014849,2]
[341909763,1731278902390,-1525.77,0.00014849,2]
[341909764,1731278902429,-1525.77,0.00014849,2]
[341909765,1731278902468,-1525.77,0.00014849,2]
[341909766,1731278902507,-1525.77,0.00014849,2]
[341909767,1731278902546,-1525.81626652,0.00014849,2]
[341909768,1731278902587,-2156.1,0.00014849,2]
[341909769,1731278902628,-2156.1,0.00014849,2]
[341909770,1731278902669,-2156.1,0.00014849,2]
[341909771,1731278902708,-2156.1,0.00014849,2]
[341909772,1731278902747,-2156.1,0.00014849,2]
[341909773,1731278902786,-2156.1,0.00014849,2]
[341909774,1731278902823,-2156.2,0.00014849,2]
[341909775,1731278902864,-171.848175,0.00014849,2]
[341909776,1731278902907,-4193.4,0.00014849,2]
[341909777,1731278902944,-4193.4,0.00014849,2]
[341909778,1731278902984,-4193.4,0.00014849,2]
[341909779,1731278903023,-4193.4,0.00014849,2]
[341909780,1731278903060,-4193.4,0.00014849,2]
[341909781,1731278903100,-4193.4,0.00014849,2]
[341909782,1731278903140,-4193.56052972,0.00014849,2]
[341909783,1731278903179,-171.848174,0.00014849,2]
[341909784,1731278903218,-500.0,0.00014849,2]
[341909785,1731278903256,-500.0,0.00014849,2]
[341909786,1731278903291,-500.0,0.00014849,2]
[341909787,1731278903332,-1629.54,0.00014849,2]
[341909788,1731278903372,-500.0,0.00014849,2]
[341909789,1731278903414,-500.0,0.00014849,2]
[341909790,1731278903457,-1629.54,0.00014849,2]
[341909791,1731278903495,-500.0,0.00014849,2]
[341909792,1731278903534,-1629.54,0.00014849,2]
[341909793,1731278903575,-375.06153983,0.00014849,2]
[341909794,1731278903619,-1629.54,0.00014849,2]
[341909795,1731278903661,-1629.54,0.00014849,2]
[341909796,1731278903704,-1629.54,0.00014849,2]
[341909797,1731278903746,-1629.68125693,0.00014849,2]
[341909798,1731278903791,-4813.23,0.00014849,2]
[341909799,1731278903833,-4813.23,0.00014849,2]
[341909800,1731278903876,-4813.23,0.00014849,2]
[341909801,1731278903914,-4813.23,0.00014849,2]
[341909802,1731278903955,-4813.23,0.00014849,2]
[341909803,1731278903997,-4813.23,0.00014849,2]
[341909804,1731278904037,-4813.2493215,0.00014849,2]
[341909805,1731278904078,-500.0,0.00014849,2]
[341909806,1731278904118,-500.0,0.00014849,2]
[341909807,1731278904158,-185.81449818,0.00014849,2]
[341909808,1731278904196,-2467.4,0.00014849,2]
[341909809,1731278904241,-2467.4,0.00014849,2]
[341909810,1731278904283,-2467.4,0.00014849,2]
[341909811,1731278904326,-2467.4,0.00014849,2]
[341909812,1731278904368,-2467.4,0.00014849,2]
[341909813,1731278904406,-2467.4,0.00014849,2]
[341909814,1731278904450,-2467.41141813,0.00014849,2]
[341909815,1731278904490,-3067.03,0.00014849,2]
[341909816,1731278904532,-3067.03,0.00014849,2]
[341909817,1731278904574,-3067.03,0.00014849,2]
[341909818,1731278904615,-3067.03,0.00014849,2]
[341909819,1731278904654,-3067.03,0.00014849,2]
[341909820,1731278904695,-3067.03,0.00014849,2]
[341909821,1731278904735,-3067.21584831,0.00014849,2]
[341909822,1731278904776,-706.1,0.00014849,2]
[341909823,1731278904816,-706.1,0.00014849,2]
[341909824,1731278904860,-706.1,0.00014849,2]
[341909825,1731278904900,-706.1,0.00014849,2]
[341909826,1731278904947,-706.1,0.00014849,2]
[341909827,1731278904992,-1061.01,0.00014849,2]
[341909828,1731278905032,-1061.01,0.00014849,2]
[341909829,1731278905074,-1061.01,0.00014849,2]
[341909830,1731278905115,-1061.01,0.00014849,2]
[341909831,1731278905156,-1061.01,0.00014849,2]
[341909832,1731278905197,-1061.01,0.00014849,2]
[341909833,1731278905239,-1061.02509999,0.00014849,2]
[341909834,1731278905280,-507.12,0.00014849,2]
[341909835,1731278905321,-507.12,0.00014849,2]
[341909836,1731278905363,-507.12,0.00014849,2]
[341909837,1731278905402,-706.1,0.00014849,2]
[341909838,1731278905443,-507.12,0.00014849,2]
[341909839,1731278905485,-706.33751306,0.00014849,2]
[341909840,1731278905525,-507.12,0.00014849,2]
[341909841,1731278905565,-507.12,0.00014849,2]
[341909842,1731278905608,-507.14330365,0.00014849,2]
[341909843,1731278905647,-1812.59,0.00014849,2]
[341909844,1731278905689,-1812.59,0.00014849,2]
[341909845,1731278905731,-1812.59,0.00014849,2]
[341909846,1731278905773,-1812.59,0.00014849,2]
[341909847,1731278905816,-1812.59,0.00014849,2]
[341909848,1731278905861,-1812.59,0.00014849,2]
[341909849,1731278905905,-1812.70363401,0.00014849,2]
[341909850,1731278905953,-1465.91,0.00014849,2]
[341909851,1731278905995,-1465.91,0.00014849,2]
[341909852,1731278906037,-1465.91,0.00014849,2]
[341909853,1731278906086,-1465.91,0.00014849,2]
[341909854,1731278906127,-1465.91,0.00014849,2]
[341909855,1731278906170,-1465.91,0.00014849,2]
[341909856,1731278906214,-1465.97065891,0.00014849,2]
[341909857,1731278906257,-500.0,0.00014849,2]
[341909858,1731278906304,-465.18615752,0.00014849,2]
[341909859,1731278906350,-854.99,0.00014849,2]
[341909860,1731278906396,-854.99,0.00014849,2]
[341909861,1731278906440,-777.21,0.00014849,2]
[341909862,1731278906482,-854.99,0.00014849,2]
[341909863,1731278906525,-777.21,0.00014849,2]
[341909864,1731278906571,-854.99,0.00014849,2]
[341909865,1731278906615,-777.21,0.00014849,2]
[341909866,1731278906660,-854.99,0.00014849,2]
[341909867,1731278906706,-777.21,0.00014849,2]
[341909868,1731278906749,-854.99,0.00014849,2]
[341909869,1731278906795,-777.21,0.00014849,2]
[341909870,1731278906839,-855.06274845,0.00014849,2]
[341909871,1731278906884,-777.21,0.00014849,2]
[341909872,1731278906928,-777.37886084,0.00014849,2]
[341909873,1731278906971,-500.0,0.00014849,2]
[341909874,1731278907016,-549.04,0.00014849,2]
[341909875,1731278907060,-500.0,0.00014849,2]
[341909876,1731278907103,-549.04,0.00014849,2]
[341909877,1731278907152,-500.0,0.00014849,2]
[341909878,1731278907194,-549.04,0.00014849,2]
[341909879,1731278907235,-500.0,0.00014849,2]
[341909880,1731278907277,-549.04,0.00014849,2]
[341909881,1731278907317,-500.0,0.00014849,2]
[341909882,1731278907359,-549.04,0.00014849,2]
[341909883,1731278907402,-500.0,0.00014849,2]
[341909884,1731278907443,-549.04,0.00014849,2]
[341909885,1731278907485,-314.96801702,0.00014849,2]
[341909886,1731278907532,-549.24095841,0.00014849,2]
[341909887,1731278907576,-5965.76,0.00014849,2]
[341909888,1731278907618,-5965.76,0.00014849,2]
[341909889,1731278907657,-5965.76,0.00014849,2]
[341909890,1731278907698,-5965.76,0.00014849,2]
[341909891,1731278907737,-5965.76,0.00014849,2]
[341909892,1731278907777,-5965.76,0.00014849,2]
[341909893,1731278907818,-5965.96238545,0.00014849,2]
[341909894,1731278907858,-2564.31,0.00014849,2]
[341909895,1731278907901,-2564.31,0.00014849,2]
[341909896,1731278907947,-2564.31,0.00014849,2]
[341909897,1731278907996,-2564.31,0.00014849,2]
[341909898,1731278908042,-2564.31,0.00014849,2]
[341909899,1731278908086,-2564.31,0.00014849,2]
[341909900,1731278908127,-2564.32154934,0.00014849,2]
[341909901,1731278908168,-1218.42,0.00014849,2]
[341909902,1731278908209,-1218.42,0.00014849,2]
[341909903,1731278908255,-1218.42,0.00014849,2]
[341909904,1731278908296,-1218.42,0.00014849,2]
[341909905,1731278908340,-1218.42,0.00014849,2]
[341909906,1731278908381,-1218.42,0.00014849,2]
[341909907,1731278908421,-1218.48543304,0.00014849,2]
[341909908,1731278908464,-2585.68,0.00014849,2]
[341909909,1731278908508,-2585.68,0.00014849,2]
[341909910,1731278908552,-2585.68,0.00014849,2]
[341909911,1731278908596,-2585.68,0.00014849,2]
[341909912,1731278908642,-2585.68,0.00014849,2]
[341909913,1731278908682,-2585.68,0.00014849,2]
[341909914,1731278908723,-2585.78369617,0.00014849,2]
[341909915,1731278908765,-557.31407896,0.00014849,2]
[341909916,1731278908805,-663.06,0.00014849,2]
[341909917,1731278908845,-663.06,0.00014849,2]
[341909918,1731278908886,-663.06,0.00014849,2]
[341909919,1731278908926,-663.06,0.00014849,2]
[341909920,1731278908968,-663.06,0.00014849,2]
[341909921,1731278909007,-663.06,0.00014849,2]
[341909922,1731278909048,-663.103265,0.00014849,2]
[341909923,1731278909087,-639.14,0.00014849,2]
[341909924,1731278909129,-639.14,0.00014849,2]
[341909925,1731278909174,-639.14,0.00014849,2]
[341909926,1731278909220,-639.14,0.00014849,2]
[341909927,1731278909262,-639.14,0.00014849,2]
[341909928,1731278909302,-639.14,0.00014849,2]
[341909929,1731278909343,-639.20848716,0.00014849,2]
[341909930,1731278909383,-151.0,0.00014849,2]
[341909931,1731278909425,-4382.39,0.00014849,2]
[341909932,1731278909466,-4382.39,0.00014849,2]
[341909933,1731278909506,-4382.39,0.00014849,2]
[341909934,1731278909785,-4382.39,0.00014849,2]
[341909935,1731278909826,-4382.39,0.00014849,2]
[341909936,1731278909864,-4382.39,0.00014849,2]
[341909937,1731278909900,-4382.54110476,0.00014849,2]
[341909938,1731278909941,-3061.89,0.00014849,2]
[341909939,1731278909981,-3061.89,0.00014849,2]
[341909940,1731278910021,-500.0,0.00014849,2]
[341909941,1731278910061,-3061.89,0.00014849,2]
[341909942,1731278910098,-500.0,0.00014849,2]
[341909943,1731278910138,-3061.89,0.00014849,2]
[341909944,1731278910181,-500.0,0.00014849,2]
[341909945,1731278910218,-3061.89,0.00014849,2]
[341909946,1731278910255,-500.0,0.00014849,2]
[341909947,1731278910295,-3061.89,0.00014849,2]
[341909948,1731278910334,-500.0,0.00014849,2]
[341909949,1731278910376,-3061.91783732,0.00014849,2]
[341909950,1731278910413,-294.73796348,0.00014849,2]
[341909951,1731278910451,-652.93,0.00014849,2]
[341909952,1731278910490,-652.93,0.00014849,2]
[341909953,1731278910529,-652.93,0.00014849,2]
[341909954,1731278910567,-652.93,0.00014849,2]
[341909955,1731278910605,-652.93,0.00014849,2]
[341909956,1731278910643,-652.93,0.00014849,2]
[341909957,1731278910682,-653.05652196,0.00014849,2]
[341909958,1731278910719,-500.0,0.00014849,2]
[341909959,1731278910758,-297.06861078,0.00014849,2]
[341909960,1731278910799,-4010.54,0.00014849,2]
[341909961,1731278910837,-4010.54,0.00014849,2]
[341909962,1731278910876,-4010.54,0.00014849,2]
[341909963,1731278910916,-4010.54,0.00014849,2]
[341909964,1731278910955,-4010.54,0.00014849,2]
[341909965,1731278910997,-4010.54,0.00014849,2]
[341909966,1731278911036,-4010.72174321,0.00014849,2]
[341909967,1731278911086,-296.26,0.00014849,2]
[341909968,1731278911131,-799.69,0.00014849,2]
[341909969,1731278911174,-799.69,0.00014849,2]
[341909970,1731278911215,-799.69,0.00014849,2]
[341909971,1731278911257,-799.69,0.00014849,2]
[341909972,1731278911299,-799.69,0.00014849,2]
[341909973,1731278911342,-799.69,0.00014849,2]
[341909974,1731278911383,-799.85424875,0.00014849,2]
[341909975,1731278911424,-5215.02,0.00014849,2]
[341909976,1731278911466,-5215.02,0.00014849,2]
[341909977,1731278911509,-663.42,0.00014849,2]
[341909978,1731278911552,-5215.02,0.00014849,2]
[341909979,1731278911600,-663.42,0.00014849,2]
[341909980,1731278911648,-5215.02,0.00014849,2]
[341909981,1731278911696,-663.42,0.00014849,2]
[341909982,1731278911746,-5215.02,0.00014849,2]
[341909983,1731278911796,-663.42,0.00014849,2]
[341909984,1731278911842,-8777.91,0.00014849,2]
[341909985,1731278911884,-663.42,0.00014849,2]
[341909986,1731278911926,-5215.02,0.00014849,2]
[341909987,1731278911968,-8777.91,0.00014849,2]
[341909988,1731278912012,-5215.21264951,0.00014849,2]
[341909989,1731278912053,-8777.91,0.00014849,2]
[341909990,1731278912103,-663.42,0.00014849,2]
[341909991,1731278912151,-8777.91,0.00014849,2]
[341909992,1731278912193,-8777.91,0.00014849,2]
[341909993,1731278912238,-663.44,0.00014849,2]
[341909994,1731278912282,-8777.91,0.00014849,2]
[341909995,1731278912328,-8778.13,0.00014849,2]